[Event "FIDE Women World Blitz 2021"]
[Site "Warsaw"]
[Date "2021.12.30"]
[Round "11.37"]
[White "Kucharska, Honorata"]
[Black "Doluhanova, Evgeniya"]
[Result "0-1"]
[ECO "E14"]
[WhiteElo "2168"]
[BlackElo "2237"]
[Annotator "NA"]
[PlyCount "98"]
[EventDate "2021.12.29"]
[EventType "swiss"]
[EventCountry "POL"]
[Tiebreak "Cut1 Buchholz"]
[SourceTitle "playchess.com"]
[Source "ChessBase"]
[SourceQuality "1"]
[TimeControl "180+2"]

1. d4 {[%emt 0:00:01]} Nf6 {[%emt 0:00:02]} 2. Nf3 {[%emt 0:00:01]} e6 {
[%emt 0:00:01]} 3. e3 {[%emt 0:00:01]} b6 {[%emt 0:00:02]} 4. Bd3 {[%emt 0:00:
02]} Bb7 {[%emt 0:00:01]} 5. O-O {[%emt 0:00:02]} c5 {[%emt 0:00:07]} 6. c4 {
[%emt 0:00:03]} Be7 {[%emt 0:00:21]} 7. Nc3 {[%emt 0:00:02]} d5 {[%emt 0:00:03]
} 8. cxd5 {[%emt 0:00:10]} Nxd5 {[%emt 0:00:12]} 9. e4 {[%emt 0:00:16]} Nxc3 {
[%emt 0:00:05]} 10. bxc3 {[%emt 0:00:02]} cxd4 {[%emt 0:00:04]} 11. cxd4 {
[%emt 0:00:01]} O-O {[%emt 0:00:03]} 12. Bb2 {[%emt 0:00:03]} Nc6 {[%emt 0:00:
12]} 13. Qe2 {[%emt 0:00:08]} Bf6 {[%emt 0:00:15]} 14. e5 {[%emt 0:00:22]} Be7
{[%emt 0:00:02]} 15. Rfd1 {[%emt 0:00:08]} Nb4 {[%emt 0:00:11]} 16. Bb1 {
[%emt 0:00:21]} Rc8 {[%emt 0:00:02]} 17. a3 {[%emt 0:00:03]} Nd5 {[%emt 0:00:
14]} 18. Qd3 {[%emt 0:00:13]} g6 {[%emt 0:00:02]} 19. Qd2 {[%emt 0:00:03]} Re8
{[%emt 0:00:22]} 20. Bd3 {[%emt 0:00:08]} Bf8 {[%emt 0:00:05]} 21. a4 {[%emt 0:
00:30]} Ne7 {[%emt 0:00:03]} 22. Qe3 {[%emt 0:00:14]} Nd5 {[%emt 0:00:09]} 23.
Qd2 {[%emt 0:00:04]} Nb4 {[%emt 0:00:13]} 24. Bb5 {[%emt 0:00:17]} Bxf3 {
[%emt 0:00:33]} 25. gxf3 {[%emt 0:00:07]} Rc2 {[%emt 0:00:02]} 26. Qf4 {
[%emt 0:00:01]} Nd5 {[%emt 0:00:11]} 27. Qe4 {[%emt 0:00:12]} Rxb2 {[%emt 0:00:
05]} 28. Bxe8 {[%emt 0:00:03]} Qxe8 {[%emt 0:00:03]} 29. Rdc1 {[%emt 0:00:02]}
Qe7 {[%emt 0:00:03]} 30. Qg4 {[%emt 0:00:09]} Bh6 {[%emt 0:00:05]} 31. Rc8+ {
[%emt 0:00:01]} Kg7 {[%emt 0:00:01]} 32. a5 {[%emt 0:00:02]} Nf4 {[%emt 0:00:
02]} 33. axb6 {[%emt 0:00:02]} Rxb6 {[%emt 0:00:04]} 34. Ra8 {[%emt 0:00:01]}
Rb7 {[%emt 0:00:01]} 35. h4 {[%emt 0:00:02]} Ne2+ {[%emt 0:00:02]} 36. Kg2 {
[%emt 0:00:02]} Nf4+ {[%emt 0:00:03]} 37. Kg1 {[%emt 0:00:01]} Qd7 {[%emt 0:00:
01]} 38. Rd1 {[%emt 0:00:05]} Qd5 {[%emt 0:00:01]} 39. Re8 {[%emt 0:00:06]} a5
{[%emt 0:00:02]} 40. Rc8 {[%emt 0:00:06]} a4 {[%emt 0:00:01]} 41. Rc5 {[%emt 0:
00:01]} Qd7 {[%emt 0:00:02]} 42. d5 {[%emt 0:00:02]} Nxd5 {[%emt 0:00:02]} 43.
f4 {[%emt 0:00:00]} Qe7 {[%emt 0:00:02]} 44. Rc4 {[%emt 0:00:02]} Nxf4 {
[%emt 0:00:02]} 45. Rxf4 {[%emt 0:00:01]} Bxf4 {[%emt 0:00:02]} 46. Qxf4 {
[%emt 0:00:01]} Rb4 {[%emt 0:00:01]} 47. Qe3 {[%emt 0:00:03]} Qxh4 {[%emt 0:00:
02]} 48. Kf1 {[%emt 0:00:01]} Rb2 {[%emt 0:00:02]} 49. Rd3 {[%emt 0:00:03]}
Qh1# {[%emt 0:00:01]} 0-1

[Event "FIDE Women World Blitz 2021"]
[Site "Warsaw"]
[Date "2021.12.30"]
[Round "11.38"]
[White "Gaboyan, Susanna"]
[Black "Bartel, Marta"]
[Result "1-0"]
[ECO "A08"]
[WhiteElo "2253"]
[BlackElo "2192"]
[Annotator "NA"]
[PlyCount "90"]
[EventDate "2021.12.29"]
[EventType "swiss"]
[EventCountry "POL"]
[Tiebreak "Cut1 Buchholz"]
[SourceTitle "playchess.com"]
[Source "ChessBase"]
[SourceQuality "1"]
[TimeControl "180+2"]

1. Nf3 {[%emt 0:00:01]} Nf6 {[%emt 0:00:01]} 2. g3 {[%emt 0:00:01]} g6 {
[%emt 0:00:01]} 3. Bg2 {[%emt 0:00:00]} Bg7 {[%emt 0:00:01]} 4. O-O {[%emt 0:
00:01]} d5 {[%emt 0:00:01]} 5. d3 {[%emt 0:00:02]} O-O {[%emt 0:00:04]} 6. Nbd2
{[%emt 0:00:01]} c5 {[%emt 0:00:03]} 7. e4 {[%emt 0:00:01]} Nc6 {[%emt 0:00:03]
} 8. h3 {[%emt 0:00:08]} b6 {[%emt 0:00:07]} 9. exd5 {[%emt 0:00:32]} Nxd5 {
[%emt 0:00:03]} 10. Nc4 {[%emt 0:00:01]} Bb7 {[%emt 0:00:03]} 11. a4 {[%emt 0:
00:03]} Qc7 {[%emt 0:00:27]} 12. Qe2 {[%emt 0:00:33]} Rad8 {[%emt 0:00:02]} 13.
Be3 {[%emt 0:00:31]} Nxe3 {[%emt 0:00:17]} 14. Qxe3 {[%emt 0:00:03]} e5 {
[%emt 0:00:20]} 15. c3 {[%emt 0:00:08]} Rfe8 {[%emt 0:00:02]} 16. Rfe1 {
[%emt 0:00:11]} f6 {[%emt 0:00:07]} 17. Rad1 {[%emt 0:00:05]} Ne7 {[%emt 0:00:
03]} 18. Qc1 {[%emt 0:00:14]} Nf5 {[%emt 0:00:11]} 19. Ne3 {[%emt 0:00:36]} Bh6
{[%emt 0:00:16]} 20. Kh2 {[%emt 0:00:19]} Nxe3 {[%emt 0:00:19]} 21. fxe3 {
[%emt 0:00:12]} e4 {[%emt 0:00:10]} 22. dxe4 {[%emt 0:00:00]} Bxe4 {[%emt 0:00:
04]} 23. Nh4 {[%emt 0:00:00]} Qe5 {[%emt 0:00:22]} 24. Rxd8 {[%emt 0:00:00]}
Rxd8 {[%emt 0:00:01]} 25. Rd1 {[%emt 0:00:00]} Re8 {[%emt 0:00:22]} 26. Qd2 {
[%emt 0:00:02]} Bf8 {[%emt 0:00:12]} 27. Bxe4 {[%emt 0:00:04]} Qxe4 {[%emt 0:
00:01]} 28. Ng2 {[%emt 0:00:02]} Kg7 {[%emt 0:00:07]} 29. Qd7+ {[%emt 0:00:01]}
Re7 {[%emt 0:00:02]} 30. Qd8 {[%emt 0:00:02]} Re8 {[%emt 0:00:02]} 31. Rd7+ {
[%emt 0:00:02]} Kh6 {[%emt 0:00:02]} 32. Qc7 {[%emt 0:00:02]} g5 {[%emt 0:00:
02]} 33. Qxa7 {[%emt 0:00:05]} Qg6 {[%emt 0:00:05]} 34. Qxb6 {[%emt 0:00:03]}
c4 {[%emt 0:00:02]} 35. Rc7 {[%emt 0:00:02]} Be7 {[%emt 0:00:02]} 36. Rc6 {
[%emt 0:00:02]} Bd8 {[%emt 0:00:01]} 37. Qb7 {[%emt 0:00:01]} Be7 {[%emt 0:00:
02]} 38. Qd7 {[%emt 0:00:02]} Bf8 {[%emt 0:00:03]} 39. Qd5 {[%emt 0:00:01]} Be7
{[%emt 0:00:01]} 40. Qxc4 {[%emt 0:00:02]} Rd8 {[%emt 0:00:02]} 41. Qe6 {
[%emt 0:00:01]} Qe8 {[%emt 0:00:04]} 42. Qf5 {[%emt 0:00:02]} Rd2 {[%emt 0:00:
01]} 43. e4 {[%emt 0:00:02]} Qg6 {[%emt 0:00:03]} 44. Qe6 {[%emt 0:00:02]} Bd8
{[%emt 0:00:03]} 45. Qg4 {[%emt 0:00:02]} Rxb2 {[%emt 0:00:03]} 1-0

[Event "FIDE Women World Blitz 2021"]
[Site "Warsaw"]
[Date "2021.12.30"]
[Round "11.39"]
[White "Malicka, Maria"]
[Black "Yakimova, Mariya"]
[Result "1-0"]
[ECO "B33"]
[WhiteElo "2307"]
[BlackElo "2219"]
[Annotator "NA"]
[PlyCount "103"]
[EventDate "2021.12.29"]
[EventType "swiss"]
[EventCountry "POL"]
[Tiebreak "Cut1 Buchholz"]
[SourceTitle "playchess.com"]
[Source "ChessBase"]
[SourceQuality "1"]
[TimeControl "180+2"]

1. e4 {[%emt 0:00:01]} c5 {[%emt 0:00:01]} 2. Nf3 {[%emt 0:00:01]} Nc6 {
[%emt 0:00:01]} 3. d4 {[%emt 0:00:00]} cxd4 {[%emt 0:00:01]} 4. Nxd4 {[%emt 0:
00:01]} Nf6 {[%emt 0:00:02]} 5. Nc3 {[%emt 0:00:01]} e5 {[%emt 0:00:01]} 6.
Ndb5 {[%emt 0:00:01]} d6 {[%emt 0:00:01]} 7. a4 {[%emt 0:00:00]} a6 {[%emt 0:
00:04]} 8. Na3 {[%emt 0:00:01]} Be6 {[%emt 0:00:02]} 9. Bc4 {[%emt 0:00:02]}
Rc8 {[%emt 0:00:01]} 10. Bg5 {[%emt 0:00:11]} Be7 {[%emt 0:00:02]} 11. Bxf6 {
[%emt 0:00:01]} Bxf6 {[%emt 0:00:01]} 12. Nd5 {[%emt 0:00:02]} Bg5 {[%emt 0:00:
08]} 13. O-O {[%emt 0:00:02]} O-O {[%emt 0:00:02]} 14. c3 {[%emt 0:00:01]} Kh8
{[%emt 0:00:04]} 15. Qe2 {[%emt 0:00:12]} g6 {[%emt 0:00:05]} 16. Rad1 {
[%emt 0:00:12]} f5 {[%emt 0:00:20]} 17. Nb6 {[%emt 0:00:13]} Qxb6 {[%emt 0:00:
15]} 18. Bxe6 {[%emt 0:00:01]} Rcd8 {[%emt 0:00:02]} 19. exf5 {[%emt 0:00:06]}
Rf6 {[%emt 0:00:47]} 20. Qg4 {[%emt 0:00:22]} Bh6 {[%emt 0:00:28]} 21. Nc4 {
[%emt 0:00:24]} Qc7 {[%emt 0:00:02]} 22. Qh3 {[%emt 0:00:27]} gxf5 {[%emt 0:00:
22]} 23. Bxf5 {[%emt 0:00:04]} d5 {[%emt 0:00:01]} 24. Ne3 {[%emt 0:00:13]} Ne7
{[%emt 0:00:23]} 25. Ng4 {[%emt 0:00:16]} Rxf5 {[%emt 0:00:07]} 26. Nxh6 {
[%emt 0:00:00]} Rf6 {[%emt 0:00:09]} 27. Ng4 {[%emt 0:00:02]} Rg6 {[%emt 0:00:
05]} 28. Rfe1 {[%emt 0:00:04]} e4 {[%emt 0:00:01]} 29. Qh5 {[%emt 0:00:19]}
Rdg8 {[%emt 0:00:06]} 30. h3 {[%emt 0:00:05]} Rg5 {[%emt 0:00:11]} 31. Qh6 {
[%emt 0:00:08]} R5g6 {[%emt 0:00:01]} 32. Qh5 {[%emt 0:00:01]} Rg5 {[%emt 0:00:
01]} 33. Qf7 {[%emt 0:00:17]} h5 {[%emt 0:00:01]} 34. Qf6+ {[%emt 0:00:08]}
R8g7 {[%emt 0:00:01]} 35. Qh6+ {[%emt 0:00:04]} Kg8 {[%emt 0:00:03]} 36. Qe6+ {
[%emt 0:00:01]} Kf8 {[%emt 0:00:05]} 37. Qf6+ {[%emt 0:00:04]} Ke8 {[%emt 0:00:
01]} 38. Ne3 {[%emt 0:00:03]} R7g6 {[%emt 0:00:05]} 39. Qh8+ {[%emt 0:00:00]}
Rg8 {[%emt 0:00:02]} 40. Qd4 {[%emt 0:00:01]} Qc6 {[%emt 0:00:02]} 41. g3 {
[%emt 0:00:02]} h4 {[%emt 0:00:02]} 42. g4 {[%emt 0:00:01]} Qe6 {[%emt 0:00:01]
} 43. Nxd5 {[%emt 0:00:07]} Nxd5 {[%emt 0:00:01]} 44. Rxe4 {[%emt 0:00:02]}
Qxe4 {[%emt 0:00:04]} 45. Qxe4+ {[%emt 0:00:01]} Ne7 {[%emt 0:00:00]} 46. Re1 {
[%emt 0:00:01]} R8g7 {[%emt 0:00:02]} 47. Qxb7 {[%emt 0:00:02]} Rc5 {[%emt 0:
00:02]} 48. Qb8+ {[%emt 0:00:04]} Kf7 {[%emt 0:00:02]} 49. Qf4+ {[%emt 0:00:03]
} Ke8 {[%emt 0:00:01]} 50. Qb8+ {[%emt 0:00:02]} Kd7 {[%emt 0:00:03]} 51. Qa7+
{[%emt 0:00:02]} Rc7 {[%emt 0:00:01]} 52. Qd4+ {[%emt 0:00:02]} 1-0

[Event "FIDE Women World Blitz 2021"]
[Site "Warsaw"]
[Date "2021.12.30"]
[Round "12.1"]
[White "Assaubayeva, Bibisara"]
[Black "Abdumalik, Zhansaya"]
[Result "1/2-1/2"]
[ECO "D85"]
[WhiteElo "2400"]
[BlackElo "2507"]
[Annotator "ChessBase"]
[PlyCount "78"]
[EventDate "2021.12.29"]
[EventType "swiss"]
[EventCountry "POL"]
[Tiebreak "Cut1 Buchholz"]
[SourceTitle "playchess.com"]
[Source "ChessBase"]
[SourceQuality "1"]
[TimeControl "180+2"]

1. d4 {[%emt 0:00:01]} Nf6 {[%emt 0:00:01]} 2. c4 {[%emt 0:00:01]} g6 {[%emt 0:
00:01]} 3. Nc3 {[%emt 0:00:01]} d5 {[%emt 0:00:00]} 4. cxd5 {[%emt 0:00:01]}
Nxd5 {[%emt 0:00:01]} 5. e4 {[%emt 0:00:01]} Nxc3 {[%emt 0:00:02]} 6. bxc3 {
[%emt 0:00:01]} Bg7 {[%emt 0:00:02]} 7. Be3 {[%emt 0:00:03]} c5 {[%emt 0:00:03]
} 8. Qd2 {[%emt 0:00:02]} Qa5 {[%emt 0:00:09]} 9. Rc1 {[%emt 0:00:01]} O-O {
[%emt 0:00:07]} 10. Nf3 {[%emt 0:00:01]} b6 {[%emt 0:00:17]} 11. d5 {[%emt 0:
00:16]} Bg4 {[%emt 0:00:17]} 12. Be2 {[%emt 0:00:07]} Nd7 {[%emt 0:00:05]} 13.
h3 {[%emt 0:00:01]} Bxf3 {[%emt 0:00:02]} 14. Bxf3 {[%emt 0:00:02]} c4 {
[%emt 0:00:07]} 15. Be2 {[%emt 0:00:41]} Nc5 {[%emt 0:00:09]} 16. f3 {[%emt 0:
00:18]} Rac8 {[%emt 0:00:21]} 17. O-O {[%emt 0:00:03]} Na4 {[%emt 0:00:04]} 18.
Bd4 {[%emt 0:00:20]} Bxd4+ {[%emt 0:00:10]} 19. Qxd4 {[%emt 0:00:01]} Qc5 {
[%emt 0:00:01]} 20. Rfd1 {[%emt 0:00:12]} b5 {[%emt 0:00:03]} 21. f4 {[%emt 0:
00:12]} Rfd8 {[%emt 0:00:14]} 22. Kh2 {[%emt 0:00:05]} Qxd4 {[%emt 0:00:17]}
23. Rxd4 {[%emt 0:00:01]} Rc5 {[%emt 0:00:01]} 24. Bf3 {[%emt 0:00:08]} Nb2 {
[%emt 0:00:05]} 25. e5 {[%emt 0:00:08]} a5 {[%emt 0:00:03]} 26. a3 {[%emt 0:00:
04]} f6 {[%emt 0:00:17]} 27. Be4 {[%emt 0:00:23]} Kf7 {[%emt 0:00:10]} 28. Kg3
{[%emt 0:00:11]} f5 {[%emt 0:00:21]} 29. Bf3 {[%emt 0:00:01]} h6 {[%emt 0:00:
06]} 30. h4 {[%emt 0:00:05]} h5 {[%emt 0:00:01]} 31. Rb1 {[%emt 0:00:09]} Na4 {
[%emt 0:00:03]} 32. Rc1 {[%emt 0:00:01]} Nb2 {[%emt 0:00:03]} 33. Rb1 {[%emt 0:
00:01]} Na4 {[%emt 0:00:01]} 34. Rc1 {[%emt 0:00:01]} Nb6 {[%emt 0:00:08]} 35.
Rcd1 {[%emt 0:00:04]} Na4 {[%emt 0:00:02]} 36. Rc1 {[%emt 0:00:01]} Nb2 {
[%emt 0:00:07]} 37. Rb1 {[%emt 0:00:01]} Na4 {[%emt 0:00:03]} 38. Rc1 {[%emt 0:
00:01]} Nb6 {[%emt 0:00:06]} 39. Rcd1 {[%emt 0:00:01]} Na4 {[%emt 0:00:01]}
1/2-1/2

[Event "FIDE Women World Blitz 2021"]
[Site "Warsaw"]
[Date "2021.12.30"]
[Round "12.1"]
[White "Gil Quilez, Sonia"]
[Black "Wikar, Martyna"]
[Result "0-1"]
[ECO "E99"]
[WhiteElo "2122"]
[BlackElo "1899"]
[Annotator "NA"]
[PlyCount "82"]
[EventDate "2021.12.29"]
[EventType "swiss"]
[EventCountry "POL"]
[Tiebreak "Cut1 Buchholz"]
[SourceTitle "playchess.com"]
[Source "ChessBase"]
[SourceQuality "1"]
[TimeControl "180+2"]

1. d4 {[%emt 0:00:00]} Nf6 {[%emt 0:00:02]} 2. c4 {[%emt 0:00:01]} g6 {[%emt 0:
00:01]} 3. Nc3 {[%emt 0:00:01]} Bg7 {[%emt 0:00:01]} 4. e4 {[%emt 0:00:01]} d6
{[%emt 0:00:02]} 5. Nf3 {[%emt 0:00:01]} O-O {[%emt 0:00:02]} 6. Be2 {[%emt 0:
00:01]} Nc6 {[%emt 0:00:01]} 7. O-O {[%emt 0:00:13]} e5 {[%emt 0:00:01]} 8. d5
{[%emt 0:00:01]} Ne7 {[%emt 0:00:01]} 9. Ne1 {[%emt 0:00:18]} Nd7 {[%emt 0:00:
11]} 10. Be3 {[%emt 0:00:03]} f5 {[%emt 0:00:03]} 11. f3 {[%emt 0:00:01]} Rf7 {
[%emt 0:00:04]} 12. Nd3 {[%emt 0:00:04]} f4 {[%emt 0:00:27]} 13. Bf2 {[%emt 0:
00:01]} g5 {[%emt 0:00:01]} 14. c5 {[%emt 0:00:02]} Ng6 {[%emt 0:00:06]} 15.
Rc1 {[%emt 0:00:03]} Bf8 {[%emt 0:00:03]} 16. cxd6 {[%emt 0:00:02]} cxd6 {
[%emt 0:00:05]} 17. Nb5 {[%emt 0:00:09]} Nf6 {[%emt 0:00:03]} 18. Qb3 {[%emt 0:
00:27]} g4 {[%emt 0:00:19]} 19. Nxa7 {[%emt 0:00:15]} gxf3 {[%emt 0:00:15]} 20.
gxf3 {[%emt 0:00:07]} Bh3 {[%emt 0:00:13]} 21. Rfd1 {[%emt 0:00:12]} Nxe4 {
[%emt 0:00:07]} 22. Kh1 {[%emt 0:00:30]} Nxf2+ {[%emt 0:00:38]} 23. Nxf2 {
[%emt 0:00:01]} Qh4 {[%emt 0:00:10]} 24. Nxh3 {[%emt 0:00:10]} Qxh3 {[%emt 0:
00:03]} 25. Nb5 {[%emt 0:00:06]} Nh4 {[%emt 0:00:16]} 26. Rg1+ {[%emt 0:00:01]}
Rg7 {[%emt 0:00:01]} 27. Rxg7+ {[%emt 0:00:06]} Bxg7 {[%emt 0:00:09]} 28. Rg1 {
[%emt 0:00:00]} Nf5 {[%emt 0:00:05]} 29. Bf1 {[%emt 0:00:06]} Qh4 {[%emt 0:00:
21]} 30. Rg4 {[%emt 0:00:08]} Qe1 {[%emt 0:00:00]} 31. Qd3 {[%emt 0:00:05]} Ne3
{[%emt 0:00:02]} 32. Rg1 {[%emt 0:00:06]} Qf2 {[%emt 0:00:02]} 33. Qe2 {
[%emt 0:00:04]} Qh4 {[%emt 0:00:04]} 34. Nxd6 {[%emt 0:00:04]} Rd8 {[%emt 0:00:
04]} 35. Ne4 {[%emt 0:00:03]} Rxd5 {[%emt 0:00:03]} 36. Qc2 {[%emt 0:00:06]}
Nxc2 {[%emt 0:00:03]} 37. Bc4 {[%emt 0:00:02]} Ne3 {[%emt 0:00:01]} 38. Bxd5+ {
[%emt 0:00:01]} Nxd5 {[%emt 0:00:01]} 39. Rd1 {[%emt 0:00:02]} Qh5 {[%emt 0:00:
02]} 40. Kg2 {[%emt 0:00:03]} Ne3+ {[%emt 0:00:01]} 41. Kf2 {[%emt 0:00:01]}
Nxd1+ {[%emt 0:00:01]} 0-1

[Event "FIDE Women World Blitz 2021"]
[Site "Warsaw"]
[Date "2021.12.30"]
[Round "12.2"]
[White "Kiolbasa, Oliwia"]
[Black "Gunina, Valentina"]
[Result "0-1"]
[ECO "B12"]
[WhiteElo "2403"]
[BlackElo "2480"]
[Annotator "ChessBase"]
[PlyCount "146"]
[EventDate "2021.12.29"]
[EventType "swiss"]
[EventCountry "POL"]
[Tiebreak "Cut1 Buchholz"]
[SourceTitle "playchess.com"]
[Source "ChessBase"]
[SourceQuality "1"]
[TimeControl "180+2"]

1. e4 {[%emt 0:00:01]} c6 {[%emt 0:00:00]} 2. d4 {[%emt 0:00:02]} d5 {[%emt 0:
00:01]} 3. e5 {[%emt 0:00:01]} c5 {[%emt 0:00:01]} 4. dxc5 {[%emt 0:00:04]} e6
{[%emt 0:00:01]} 5. Nf3 {[%emt 0:00:02]} Bxc5 {[%emt 0:00:02]} 6. Bd3 {[%emt 0:
00:02]} Nc6 {[%emt 0:00:02]} 7. O-O {[%emt 0:00:07]} Nge7 {[%emt 0:00:05]} 8.
Bf4 {[%emt 0:00:05]} Ng6 {[%emt 0:00:03]} 9. Bg3 {[%emt 0:00:02]} Qb6 {[%emt 0:
00:04]} 10. Nc3 {[%emt 0:00:30]} Be7 {[%emt 0:00:39]} 11. Qd2 {[%emt 0:00:45]}
Bd7 {[%emt 0:00:05]} 12. a3 {[%emt 0:00:10]} Rc8 {[%emt 0:00:10]} 13. h4 {
[%emt 0:00:17]} Nd4 {[%emt 0:00:18]} 14. Nxd4 {[%emt 0:00:39]} Qxd4 {[%emt 0:
00:02]} 15. h5 {[%emt 0:00:08]} Nxe5 {[%emt 0:00:12]} 16. Ne2 {[%emt 0:00:09]}
Nc4 {[%emt 0:00:01]} 17. Nxd4 {[%emt 0:00:15]} Nxd2 {[%emt 0:00:02]} 18. Rfe1 {
[%emt 0:00:10]} a6 {[%emt 0:00:09]} 19. a4 {[%emt 0:00:05]} Nc4 {[%emt 0:00:05]
} 20. b3 {[%emt 0:00:01]} Nd6 {[%emt 0:00:09]} 21. Rad1 {[%emt 0:00:04]} h6 {
[%emt 0:00:05]} 22. Nf3 {[%emt 0:00:02]} O-O {[%emt 0:00:06]} 23. Ne5 {[%emt 0:
00:01]} Be8 {[%emt 0:00:00]} 24. c4 {[%emt 0:00:03]} d4 {[%emt 0:00:19]} 25.
Bb1 {[%emt 0:00:03]} f6 {[%emt 0:00:01]} 26. Ng6 {[%emt 0:00:02]} Bxg6 {
[%emt 0:00:01]} 27. Bxg6 {[%emt 0:00:01]} e5 {[%emt 0:00:28]} 28. f4 {[%emt 0:
00:01]} e4 {[%emt 0:00:17]} 29. Bxe4 {[%emt 0:00:03]} Nxe4 {[%emt 0:00:04]} 30.
Rxe4 {[%emt 0:00:01]} Bc5 {[%emt 0:00:02]} 31. Bf2 {[%emt 0:00:01]} Rfd8 {
[%emt 0:00:02]} 32. Rd3 {[%emt 0:00:01]} Rd7 {[%emt 0:00:04]} 33. Re1 {[%emt 0:
00:02]} Kf7 {[%emt 0:00:01]} 34. a5 {[%emt 0:00:03]} Rcd8 {[%emt 0:00:03]} 35.
Rb1 {[%emt 0:00:01]} Bb4 {[%emt 0:00:01]} 36. Be1 {[%emt 0:00:02]} Bxe1 {
[%emt 0:00:06]} 37. Rxe1 {[%emt 0:00:00]} Re7 {[%emt 0:00:01]} 38. Rxe7+ {
[%emt 0:00:04]} Kxe7 {[%emt 0:00:01]} 39. g4 {[%emt 0:00:02]} f5 {[%emt 0:00:
02]} 40. g5 {[%emt 0:00:02]} hxg5 {[%emt 0:00:04]} 41. fxg5 {[%emt 0:00:01]}
Ke6 {[%emt 0:00:02]} 42. Kf2 {[%emt 0:00:03]} Ke5 {[%emt 0:00:00]} 43. Kf3 {
[%emt 0:00:01]} Rh8 {[%emt 0:00:01]} 44. Rd1 {[%emt 0:00:04]} Rxh5 {[%emt 0:00:
01]} 45. Re1+ {[%emt 0:00:01]} Kd6 {[%emt 0:00:01]} 46. Kf4 {[%emt 0:00:03]} g6
{[%emt 0:00:01]} 47. Re8 {[%emt 0:00:02]} Rh4+ {[%emt 0:00:04]} 48. Kf3 {
[%emt 0:00:01]} Rh3+ {[%emt 0:00:03]} 49. Kf4 {[%emt 0:00:01]} Rh4+ {[%emt 0:
00:02]} 50. Kf3 {[%emt 0:00:01]} Rg4 {[%emt 0:00:01]} 51. Rd8+ {[%emt 0:00:06]}
Kc7 {[%emt 0:00:02]} 52. Rd5 {[%emt 0:00:03]} Rxg5 {[%emt 0:00:02]} 53. Rxd4 {
[%emt 0:00:01]} Rg1 {[%emt 0:00:01]} 54. Rd5 {[%emt 0:00:03]} Rb1 {[%emt 0:00:
03]} 55. Rd3 {[%emt 0:00:02]} g5 {[%emt 0:00:01]} 56. Ke3 {[%emt 0:00:03]} g4 {
[%emt 0:00:03]} 57. Kf4 {[%emt 0:00:01]} Rf1+ {[%emt 0:00:01]} 58. Kg3 {
[%emt 0:00:02]} Kc6 {[%emt 0:00:01]} 59. Rd8 {[%emt 0:00:02]} Rf3+ {[%emt 0:00:
01]} 60. Kg2 {[%emt 0:00:01]} Rxb3 {[%emt 0:00:01]} 61. Rf8 {[%emt 0:00:03]}
Rf3 {[%emt 0:00:01]} 62. Rc8+ {[%emt 0:00:02]} Kd7 {[%emt 0:00:01]} 63. Rf8 {
[%emt 0:00:01]} Rf4 {[%emt 0:00:03]} 64. c5 {[%emt 0:00:02]} Kc6 {[%emt 0:00:
03]} 65. Rc8+ {[%emt 0:00:01]} Kb5 {[%emt 0:00:00]} 66. Rc7 {[%emt 0:00:01]}
Rc4 {[%emt 0:00:03]} 67. Rxb7+ {[%emt 0:00:01]} Kxa5 {[%emt 0:00:01]} 68. Rc7 {
[%emt 0:00:04]} Kb5 {[%emt 0:00:01]} 69. Kg3 {[%emt 0:00:02]} Rxc5 {[%emt 0:00:
01]} 70. Rb7+ {[%emt 0:00:01]} Kc6 {[%emt 0:00:01]} 71. Rb4 {[%emt 0:00:02]} a5
{[%emt 0:00:01]} 72. Rd4 {[%emt 0:00:01]} Kb5 {[%emt 0:00:01]} 73. Rf4 {
[%emt 0:00:03]} a4 {[%emt 0:00:01]} 0-1

[Event "FIDE Women World Blitz 2021"]
[Site "Warsaw"]
[Date "2021.12.30"]
[Round "12.2"]
[White "Maisuradze, Nino"]
[Black "Kubicka, Anna"]
[Result "1-0"]
[ECO "A01"]
[WhiteElo "2175"]
[BlackElo "2273"]
[Annotator "NA"]
[PlyCount "93"]
[EventDate "2021.12.29"]
[EventType "swiss"]
[EventCountry "POL"]
[Tiebreak "Cut1 Buchholz"]
[SourceTitle "playchess.com"]
[Source "ChessBase"]
[SourceQuality "1"]
[TimeControl "180+2"]

1. b3 {[%emt 0:00:00]} e5 {[%emt 0:00:02]} 2. Bb2 {[%emt 0:00:01]} Nc6 {
[%emt 0:00:01]} 3. c4 {[%emt 0:00:00]} f5 {[%emt 0:00:05]} 4. Nc3 {[%emt 0:00:
03]} Nf6 {[%emt 0:00:01]} 5. e3 {[%emt 0:00:07]} d6 {[%emt 0:00:02]} 6. d4 {
[%emt 0:00:02]} g6 {[%emt 0:00:01]} 7. d5 {[%emt 0:00:07]} Ne7 {[%emt 0:00:02]}
8. Bd3 {[%emt 0:00:05]} Bg7 {[%emt 0:00:04]} 9. Bc2 {[%emt 0:00:03]} O-O {
[%emt 0:00:02]} 10. Nge2 {[%emt 0:00:02]} a6 {[%emt 0:00:04]} 11. Qd2 {[%emt 0:
00:15]} Qe8 {[%emt 0:00:03]} 12. O-O {[%emt 0:00:08]} g5 {[%emt 0:00:06]} 13.
f4 {[%emt 0:00:03]} gxf4 {[%emt 0:00:02]} 14. exf4 {[%emt 0:00:01]} e4 {
[%emt 0:00:01]} 15. Nd4 {[%emt 0:00:04]} Qg6 {[%emt 0:00:13]} 16. b4 {[%emt 0:
00:09]} Nh5 {[%emt 0:00:21]} 17. Rae1 {[%emt 0:00:14]} Qh6 {[%emt 0:00:02]} 18.
Nce2 {[%emt 0:00:09]} Ng6 {[%emt 0:00:21]} 19. Bb3 {[%emt 0:00:02]} Bd7 {
[%emt 0:00:06]} 20. c5 {[%emt 0:00:22]} Rae8 {[%emt 0:00:13]} 21. Ne6 {[%emt 0:
00:10]} Bxb2 {[%emt 0:00:27]} 22. Qxb2 {[%emt 0:00:11]} Bxe6 {[%emt 0:00:09]}
23. dxe6 Re7 {[%emt 0:00:01]} 24. cxd6 {[%emt 0:00:02]} cxd6 {[%emt 0:00:01]}
25. Qd2 {[%emt 0:00:07]} Rd8 {[%emt 0:00:01]} 26. g3 {[%emt 0:00:06]} Nf6 {
[%emt 0:00:09]} 27. Nd4 {[%emt 0:00:04]} Qh5 {[%emt 0:00:04]} 28. Kg2 {[%emt 0:
00:14]} Kh8 {[%emt 0:00:04]} 29. Bd1 {[%emt 0:00:05]} Ng4 {[%emt 0:00:55]} 30.
h3 Rg8 {[%emt 0:00:09]} 31. hxg4 {[%emt 0:00:01]} fxg4 {[%emt 0:00:01]} 32. Rh1
{[%emt 0:00:04]} Qd5 {[%emt 0:00:02]} 33. Bb3 {[%emt 0:00:04]} e3+ {[%emt 0:00:
02]} 34. Bxd5 {[%emt 0:00:02]} exd2 {[%emt 0:00:01]} 35. Rd1 {[%emt 0:00:03]}
Rc8 {[%emt 0:00:02]} 36. Rxd2 {[%emt 0:00:01]} Rc3 {[%emt 0:00:04]} 37. Nf5 {
[%emt 0:00:05]} Rec7 {[%emt 0:00:03]} 38. Nxd6 {[%emt 0:00:06]} Rc2 {[%emt 0:
00:02]} 39. Rhd1 {[%emt 0:00:10]} b5 {[%emt 0:00:01]} 40. Be4 {[%emt 0:00:09]}
Rxd2+ {[%emt 0:00:03]} 41. Rxd2 {[%emt 0:00:00]} Ne7 {[%emt 0:00:02]} 42. f5 {
[%emt 0:00:04]} Ng8 {[%emt 0:00:07]} 43. Rc2 {[%emt 0:00:15]} Re7 {[%emt 0:00:
03]} 44. Rc8 {[%emt 0:00:02]} Kg7 {[%emt 0:00:02]} 45. Ne8+ {[%emt 0:00:05]}
Kh6 {[%emt 0:00:01]} 46. f6 {[%emt 0:00:11]} Rxe6 {[%emt 0:00:02]} 47. f7 {
[%emt 0:00:02]} 1-0